Cogmind - Beta 14 @@@ ROGUE MODE // 2024.08.28 @ 22:36:48 Player: Necroptosis Result: Destroyed by IG-IE7(R) with Subdweller Laser Performance ------------- Evolutions (0) 0 Regions Visited (2) 400 Robots Destroyed (23) 115 Value Destroyed (511) 511 Prototype IDs (0) 0 Alien Tech Used (0) 0 Bonus (0) 0 TOTAL SCORE: 1026 Bonus ------- None Cogmind --------- Core Integrity 0/250 Matter 181/300 Energy 100/100 System Corruption 1% Temperature Cool (6) Movement Core (50) Location -10/Subcaves Parts ------- > --- POWER (1) -------- (None) > --- PROPULSION (2) --- (None) > --- UTILITY (2) ------ (None) > --- WEAPON (2) ------- Datajack > --- INVENTORY (5) ---- Light Treads Wheel Sensor Array Hacking Suite Peak State ------------ > --- POWER ------------ Light Ion Engine > --- PROPULSION ------- Wheel Subdweller Monowheel > --- UTILITY ---------- Medium Storage Unit Seismic Detector > --- WEAPON ----------- Assault Rifle Assault Rifle > --- INVENTORY -------- Light Treads Wheel Wheel High-capacity Storage Unit Sensor Array Hacking Suite Assault Rifle Datajack [Rating: 9] Favorites ----------- Power Light Ion Engine Engine Light Ion Engine Propulsion Wheel Wheel Wheel Utility Seismic Detector Device Seismic Detector Storage Medium Storage Unit Weapon Assault Rifle Energy Gun Small Laser Ballistic Gun Assault Rifle Special Melee Weapon Datajack Build | -11 -10 -10 ------- Run | Yrd Mat Sub Slots Evolved . | . . . Power . | . . . Propulsion . | . . . Utility . | . . . Weapon . | . . . Parts Attached 23 | 8 8 7 Power 3 | 1 1 1 Engine 3 | 1 1 1 Core . | . . . Reactor . | . . . Propulsion 6 | 2 3 1 Treads . | . . . Leg . | . . . Wheel 6 | 2 3 1 Hover . | . . . Flight . | . . . Utility 3 | 2 1 . Device 1 | 1 . . Storage 2 | 1 1 . Processor . | . . . Hackware . | . . . Protection . | . . . Artifact . | . . . Weapon 11 | 3 3 5 Energy Gun 1 | 1 . . Energy Cannon . | . . . Ballistic Gun 8 | 2 3 3 Ballistic Cannon . | . . . Launcher . | . . . Special Weapon . | . . . Impact Weapon . | . . . Slashing Weapon . | . . . Piercing Weapon . | . . . Special Melee Weapon 2 | . . 2 Unidentified Prototypes . | . . . Parts Lost 10 | . . 10 Power 2 | . . 2 Propulsion 3 | . . 3 Utility 1 | . . 1 Weapon 4 | . . 4 Highest Loss Streak 7 | . . 7 To Critical Strikes . | . . . Average Slot Usage (%) 97 | . 100 91 Engine 13 | . 14 12 Wheel 27 | . 28 25 Device 13 | . 14 13 Storage 13 | . 14 13 Ballistic Gun 27 | . 28 24 Peak Build Rating 9 | 7 8 9 Average Rating 7 | 5 7 8 On Entrance 5 | . 7 8 Naked Turns 13 | . . 13 Heaviest Build 19 | 14 19 18 Greatest Support 30 | 26 26 30 Greatest Overweight (x) 1 | 1 . 1 Average Overweight (x) . | . . . Largest Inventory Capacity 10 | 8 10 10 Average Capacity 9 | 7 9 9 Most Carried 10 | 8 10 10 Average Carried 8 | 5 9 8 Final Capacity 10 | 8 10 5 Final Carried 10 | 8 10 4 Class Distribution -------------------- 100% | Mutant Dominant Class ---------------- Mutant | -10/Materials Mutant | -10/Subcaves Resources | -11 -10 -10 ----------- Run | Yrd Mat Sub Matter Collected 720 | 208 444 68 Remotely . | . . . Salvage Created 737 | 71 552 114 Parts 51 | 10 31 10 Haulers Intercepted . | . . . Recyclers Shooed . | . . . Parts Field Recycled . | . . . Retrieved Matter . | . . . Parts Self-Destructed 21 | . . 21 Prevented . | . . . Kills | -11 -10 -10 ------- Run | Yrd Mat Sub Combat Hostiles Destroyed 18 | . 13 5 Guns 18 | . 13 5 Classes Destroyed 6 | 1 4 1 Tunneler 3 | 3 . . Recycler 1 | . 1 . Operator 1 | . 1 . Swarmer 7 | . 3 4 Grunt 10 | . 10 . Sentry 1 | . . 1 Best Kill Streak 4 | 3 3 4 Combat Bots Only 4 | . 3 4 Max Kills in Single Turn 1 | 1 1 1 Gunslinging . | . . . Exploded . | . . . Melee . | . . . Uniques/NPCs Destroyed . | . . . Combat | -11 -10 -10 -------- Run | Yrd Mat Sub Hostile Shots Fired 162 | . 49 113 Missed 62 | . 14 48 Damage Taken 1240 | . 380 860 Core 268 | . 87 181 Absorbed by Shields . | . . . Core Remaining (%) 100 | 100 . . Volleys Fired 98 | 14 47 37 Largest 2 | 2 2 2 Hottest 40 | 40 40 40 Shots Fired 178 | 28 96 54 Gun 178 | 28 96 54 Cannon . | . . . Launcher . | . . . Special . | . . . Kinetic 178 | 28 96 54 Thermal . | . . . Explosive . | . . . Electromagnetic . | . . . Robot Hit Streak 21 | 8 21 21 Robot Miss Streak 3 | 2 3 2 Penetration Max . | . . . Secondary Targets 2 | . 1 1 Max Gunslinging Chain 1 | . 1 1 Shots Hit Robots 120 | 16 67 37 Core Hits 40 | 5 29 6 Critical Kills . | . . . Critical Parts Destroyed 1 | . 1 . Critical Strikes 1 | . 1 . Destroy 1 | . 1 . Melee Attacks 4 | . . 4 Impact . | . . . Slashing . | . . . Piercing . | . . . Sneak Attacks 3 | . . 3 Combat Hostiles . | . . . Follow-up Attacks . | . . . Damage Inflicted 1101 | 189 774 138 Guns 1101 | 189 774 138 Cannons . | . . . Explosions . | . . . Melee . | . . . Ramming . | . . . Kinetic 1101 | 189 774 138 Thermal . | . . . Explosive . | . . . Electromagnetic . | . . . Impact . | . . . Slashing . | . . . Piercing . | . . . Highest Corruption 1 | . 1 1 Average Corruption 1 | . 1 1 Corruption Purged . | . . . Corruption Blocked . | . . . Effects 11 | . 10 1 Message Errors 2 | . 2 . Matter Fused 1 | . 1 . Heat Flow Errors 2 | . 1 1 Energy Discharges 3 | . 3 . Data Loss (minor) 1 | . 1 . Misfires 2 | . 2 . Overload Shots . | . . . Overflow Damage . | . . . Projectiles . | . . . Explosions . | . . . Melee . | . . . Knockbacks . | . . . Impact . | . . . Kinetic . | . . . Secondary . | . . . Self-Inflicted Damage . | . . . Shots . | . . . Rammed . | . . . Targets Rammed . | . . . Kicked . | . . . Crushed . | . . . Highest Temperature 227 | . 161 227 Average Temperature 50 | . 33 110 Received Heat Transfer 522 | . 192 330 Siege Activations . | . . . Robots Corrupted . | . . . Combat Hostiles . | . . . Parts Fried . | . . . Impact Corruptions . | . . . Robots Melted . | . . . Combat Hostiles . | . . . Parts Melted . | . . . Heat Transferred . | . . . Parts Sabotaged . | . . . Parts Stolen . | . . . Parts Stripped . | . . . Power Chain Reactions . | . . . Alert | -11 -10 -10 ------- Run | Yrd Mat Sub Peak Influence 236 | 15 236 . Initial 9 | . 9 . Average 58 | 3 64 . Maximum Alert Level 1 | . 1 . Low Security (%) 92 | 100 91 . Level 1 7 | . 8 . Level 2 . | . . . Level 3 . | . . . Level 4 . | . . . Level 5 . | . . . High Security . | . . . Max Security . | . . . Squads Dispatched 3 | . 3 . Investigation 1 | . 1 . Extermination . | . . . Reinforcement 2 | . 2 . Assault . | . . . Garrison . | . . . Intercept . | . . . Searches Triggered . | . . . Construction Impeded . | . . . Haulers Reinforced . | . . . Active Scanning Responses . | . . . Cargo Convoy Interrupts . | . . . Stealth | -11 -10 -10 --------- Run | Yrd Mat Sub Distress Signals 5 | . 5 . Communications Jammed . | . . . Distress Signals . | . . . Times Spotted 37 | . 24 13 Peak Tracking Total 6 | . 4 6 Tactical Retreats 6 | . 3 3 Traps | -11 -10 -10 ------- Run | Yrd Mat Sub Traps Triggered 3 | . 2 1 Indirectly . | . . . Trap Hack Attempts . | . . . Triggered . | . . . Disarmed . | . . . Reprogrammed . | . . . Reused . | . . . Traps Extracted . | . . . Installed . | . . . Triggered . | . . . Machines | -11 -10 -10 ---------- Run | Yrd Mat Sub Machines Disabled . | . . . Max in Single Turn . | . . . Machines Repaired . | . . . Machines Dismantled . | . . . Machines Sabotaged . | . . . Overloaded Fab Kills . | . . . Hacking | -11 -10 -10 --------- Run | Yrd Mat Sub Machines Accessed 8 | . 8 . Terminals 5 | . 5 . Fabricators . | . . . Repair Stations 1 | . 1 . Recycling Units 2 | . 2 . Scanalyzers . | . . . Garrison Access . | . . . Total Hacks 23 | . 23 . Successful 15 | . 15 . Failed 8 | . 8 . Catastrophic 1 | . 1 . Database Lockouts . | . . . Manual 19 | . 19 . Terminals 13 | . 13 . Fabricators . | . . . Repair Stations 1 | . 1 . Recycling Units 9 | . 9 . Scanalyzers . | . . . Garrison Access . | . . . Terminal Hacks 2 | . 2 . Terminal Index 1 | . 1 . Unreport Threat 1 | . 1 . Fabricator Hacks . | . . . Repair Station Hacks . | . . . Recycling Unit Hacks 4 | . 4 . Report Inventory 1 | . 1 . Retrieve Components 3 | . 3 . Scanalyzer . | . . . Garrison Access Hacks . | . . . Unauthorized Hacks 9 | . 9 . Terminals 7 | . 7 . Botnet 2 | . 2 . Skim 5 | . 5 . Fabricators . | . . . Repair Stations . | . . . Recycling Units 2 | . 2 . Recyclers 1 | . 1 . Mask 1 | . 1 . Scanalyzers . | . . . Garrison Access . | . . . Data Cores Recovered . | . . . Used . | . . . Hacking Detections 7 | . 7 . Full Trace Events . | . . . Feedback Events . | . . . Feedback Blocked . | . . . Robot Schematics Acquired . | . . . Robots Built . | . . . Authchips . | . . . Time . | . . . Total Robot Build Rating . | . . . Part Schematics Acquired . | . . . Parts Built . | . . . Authchips . | . . . Time . | . . . Total Part Build Rating . | . . . Parts Repaired . | . . . Time . | . . . Parts Recycled . | . . . Recycled Matter . | . . . Retrieved Matter . | . . . Retrieved Components 8 | . 8 . Parts Scanalyzed . | . . . Part Schematics Acquired . | . . . Parts Damaged . | . . . Bothacking | -11 -10 -10 ------------ Run | Yrd Mat Sub Used RIF Installer . | . . . Robots Hacked 2 | . . 2 Non-combat 1 | . . 1 Combat 1 | . . 1 Robot Hacks Applied 2 | . . 2 parse_system 2 | . . 2 Relay Couplers Released . | . . . Fabnet Peak Effective % . | . . . Robots Rewired . | . . . Allies Hacked . | . . . Hacks Repelled . | . . . Allies | -11 -10 -10 -------- Run | Yrd Mat Sub Total Allies . | . . . Largest Group . | . . . Highest-Rated Group . | . . . Highest-Rated Ally . | . . . Total Orders . | . . . Ally Attacks . | . . . Total Damage . | . . . Kills . | . . . Allies Corrupted . | . . . Allies Melted . | . . . Intel | -11 -10 -10 ------- Run | Yrd Mat Sub Robot Analysis Total . | . . . Derelict Logs Recovered . | . . . Drone Launches . | . . . Drone Recoveries . | . . . Exploration | -11 -10 -10 ------------- Run | Yrd Mat Sub Turns Passed 1703 | 115 1160 428 Spaces Moved 959 | 63 596 300 Core 17 | 2 . 15 Treads . | . . . Legs . | . . . Wheels 942 | 61 596 285 Hover . | . . . Flight . | . . . Fastest Speed 50 | 50 80 50 Average Speed 86 | 89 85 88 Slowest Speed 100 | 100 90 95 Overloaded Moves . | . . . Propulsion Burnouts . | . . . Robots Hopped . | . . . Cave-ins Triggered . | . . . Exploration Rate (%) 39 | 4 88 26 Regions Visited 2 Branch Regions 1 Pre-discovered Areas 1 | . 1 . Known Exits Taken . | . . . Unknown Exits Taken 2 | 1 1 . Scrap Searched . | . . . Spaces Dug . | . . . Terrain Destroyed . | . . . Melee . | . . . Projectile . | . . . AOE . | . . . Terrain Rammed . | . . . Walls Destroyed . | . . . Machines Disabled . | . . . Actions | -11 -10 -10 --------- Run | Yrd Mat Sub Total 1662 | 92 1166 404 Wait 550 | . 496 54 Move 957 | 62 595 300 Hop . | . . . Pick Up 16 | 8 7 1 Fast Attach 8 | 7 . 1 Attach 4 | . . 4 Detach . | . . . Swap 11 | 1 8 2 Drop 14 | . 13 1 Fire 98 | 14 47 37 Melee 4 | . . 4 Ram . | . . . Kick . | . . . Crush . | . . . Escape Stasis . | . . . Rewire . | . . . Trap . | . . . Miscellaneous . | . . . Route ------- -11/Scrapyard -10/Materials (discovered 6 exits: [*Mat x3] / [*Min x2] / [*Sub]) -10/Subcaves (discovered 3 exits: Mat x2 / *Rec) History --------- Turn | Location | Event 6 | -11/Scrapyard | Discovered new exit (range 16) 116 | -11/Scrapyard | Entered Materials 176 | -10/Materials | Discovered new exit (range 15) 317 | -10/Materials | Build established: Mutant 668 | -10/Materials | Discovered new exit (range 5) 816 | -10/Materials | Derelicts attacked the area 881 | -10/Materials | Discovered new exit (range 10) 896 | -10/Materials | Discovered new exit (range 9) 929 | -10/Materials | Discovered new exit (range 3) 1090 | -10/Materials | Discovered new exit (range 11) 1103 | -10/Materials | Learned Storage stockpile data 1151 | -10/Materials | Learned location of Recycling (-8) 1215 | -10/Materials | Learned Storage trap positions 1230 | -10/Materials | Learned 4 Subcaves zone layouts 1276 | -10/Materials | Entered Subcaves 1277 | -10/Subcaves | Identified exit to Materials 1278 | -10/Subcaves | Identified exit to Recycling 1368 | -10/Subcaves | Core integrity fell below 50% 1397 | -10/Subcaves | Lost 3 parts (1p1n1w) 1429 | -10/Subcaves | A swath of the cavern ceiling suddenly collapsed 1668 | -10/Subcaves | Core integrity fell below 20% 1704 | -10/Subcaves | Destroyed by IG-IE7(R) with Subdweller Laser Last Messages --------------- 01530_ Triggered Piercing Trap. 01530_ Spikes shoot up from the floor. 01530_ Critical hit (Impale). 01553_ 86-ADW(u) builds Twisted Machinery. 01565_ Sneak attack on 86-ADW(u). 01568_ Jacked 86-ADW(u)... >>parse_system Reading system data... 01568_ 86-ADW(u) builds Twisted Machinery. 01633_ Assault Rifle destroyed. 01651_ Lgt. Ion Engine destroyed. 01659_ Wheel destroyed. 01663_ Assault Rifle destroyed. 01671_ Seismic Detector destroyed. 01681_ Sub. Monowheel destroyed. 01685_ Assault Rifle destroyed. 01685_ Dropped Med. Storage Unit. 01703_ Jacked IG-IE7(R)... >>parse_system Reading system data... Map ----- +----------------------------------------------------+ | ?????????????????????????????????????????????????? | | ?????????????????????????????????????????????????? | | ?????????????????????????????????????????????????? | | ?????????????????????????????????????????????????? | | ?????????????????????????????????????????????????? | | ?????????????????????????????????????????????????? | | ?????????????????????????????????????????????????? | | ?????????????????????????????????????????????????? | | ?????????????????????????????????????????????????? | | ?????????????????????????????????????????????????? | | ?????????????????????????????????????????????????? | | ?????????????? ?????????????????????????????????? | | ??????????? ?????????????????????????????????? | | ????????? ?????????????????????????????????? | | ???????? #????????????????????????????????? | | ???????? ##??????????????????????????????? | | ????????? ##?????????????????????????????? | | ?????????? #?????????????????????????????? | | ??????????? #?????????????????????????????? | | ???????????? ???????""????????????????????? | | ????????????? #?######"""???????????????????? | | ??????????????# #?# "" """"??????????????????? | | ???????????????# ### " ???????????????????? | | ????????????#### ^## "#?????####?????????????? | | ???####?????# ""####### ##????????????? | | ???# ##????# "@## ""## #????????????? | | ???# ####### " R "! ##???????????? | | ????# #### # # " "!= #???????????? | | ????# # ##### " ## * ###???????????? | | ????# #???######### ##?????????????? | | ????# #???????????#####??????????????? | | ???## ##### ##??????????????????????????????? | | ??## ##???###???????????????????????????????? | | ### ####???????????????????????????????????? | | ##??????????????????????????????????? | | % #??????????????????????????????????? | | ## #??????????????????????????????????? | | ?## ## #??????????????????????????????????? | | ???# #######???????????????????????#??? ????# | | #???## #??# ##??????????????????????#? ?## ??? | | ?????# #?? #?????????????????????????#### ? | | ?????# ### #?????????????????????? ##??# ## | | ?????## #????????????????????????#???## # | | ###??## ##??????????????????????###?#### # | | ### #???????????????????????##### | | ##??????????????????????? | | ## #???????????????????????? ## | | ## ####????????????????????? # #? | | #????????????????????? ## #? | | ## #????????????????????? ### ## | +----------------------------------------------------+ Best States ------------- Heat Dissipation 25 Energy Generation 10 Energy Capacity 250 Matter Stores 300 Matter Capacity 300 Sight Range 16 Terrain Scan Density 10 Evasion (%) 44 Item Schematics ----------------- None Robot Schematics ------------------ None Fabricated ------------ Nothing Alien Tech Used ----------------- None Achievements -------------- None Challenges ------------ None Game ------ Seed AccelerationForceSource Manual? 0 Play Time 00:12:19 Cumulative 22.3 hours Start 2024.08.28 @ 22:27:13 End 2024.08.28 @ 22:36:48 Sessions 1 Manual Loads 0 Difficulty Rogue Special Mode None Game No. 34 Rogue 34 Adventurer 0 Explorer 0 Win Type - Total 0 Types 0/0/0/0/0/0/0/0/0 Lore% 17 Gallery% 33 Achievement% 34 Wizard Run 0 Options --------- Layout 1 ASCII 0 Keyboard 0 Movement Mouse Keybinds 0 Fullscreen 1 Font 20/SmallcapsGlow Map View 54x42 Zoom Use 0% Tactical HUD 1 Map Filters NONE Filters NONE Steam 1 RUN: b69cbb02-f1b6-41c7-a49b-874441b78777